Workbook

Sheet Povzetek mesečnega proračuna
B1: IME PODJETJA
B2: MESEČNI PRORAČUN | E2: Datum
B4: SKUPNI ZNESEK PRORAČUNA | C4: OCENJENO | D4: DEJANSKO | E4: RAZLIKA
B5: Dohodek | C5: =Dohodek[[#Totals],[OCENJENO]] -> 63,300.00 | D5: =Dohodek[[#Totals],[DEJANSKO]] -> 57,450.00 | E5: =Skupno[[#This Row],[DEJANSKO]]-Skupno[[#This Row],[OCENJENO]] -> -5,850.00
B6: Stroški | C6: =Stroški_delovanja[[#Totals],[OCENJENO]]+Stroški_osebja[[#Totals],[OCENJENO]] -> 54,500.00 | D6: =Stroški_delovanja[[#Totals],[DEJANSKO]]+Stroški_osebja[[#Totals],[DEJANSKO]] -> 49,630.00 | E6: =Skupno[[#This Row],[OCENJENO]]-Skupno[[#This Row],[DEJANSKO]] -> 4,870.00
B7: Bilanca (dohodki minus stroški) | C7: =C5-C6 -> 8,800.00 | D7: =D5-D6 -> 7,820.00 | E7: =Skupno[[#Totals],[DEJANSKO]]-Skupno[[#Totals],[OCENJENO]] -> -980.00
B10: MOJIH NAJPOGOSTEJŠIH 5 NAJVIŠJIH OPERATIVNIH STROŠKOV
B11: STROŠKI | C11: ZNESEK | D11: % STROŠKOV | E11: 15 % ZMANJŠANJE
B12: =INDEX(Stroški_delovanja[],MATCH(Top_5_stroškov[[#This Row],[ZNESEK]],Stroški_delovanja[TOP 5 ZNESKOV],0),1) -> Vzdrževanje in popravila | C12: =LARGE(Stroški_delovanja[TOP 5 ZNESKOV],1) -> 4,600.00 | D12: =Top_5_stroškov[[#This Row],[ZNESEK]]/$D$6 -> 9.3% | E12: =Top_5_stroškov[[#This Row],[ZNESEK]]*0.15 -> 690.00
B13: =INDEX(Stroški_delovanja[],MATCH(Top_5_stroškov[[#This Row],[ZNESEK]],Stroški_delovanja[TOP 5 ZNESKOV],0),1) -> potrebščine | C13: =LARGE(Stroški_delovanja[TOP 5 ZNESKOV],2) -> 4,500.00 | D13: =Top_5_stroškov[[#This Row],[ZNESEK]]/$D$6 -> 9.1% | E13: =Top_5_stroškov[[#This Row],[ZNESEK]]*0.15 -> 675.00
B14: =INDEX(Stroški_delovanja[],MATCH(Top_5_stroškov[[#This Row],[ZNESEK]],Stroški_delovanja[TOP 5 ZNESKOV],0),1) -> Najemnina ali hipoteka | C14: =LARGE(Stroški_delovanja[TOP 5 ZNESKOV],3) -> 4,500.00 | D14: =Top_5_stroškov[[#This Row],[ZNESEK]]/$D$6 -> 9.1% | E14: =Top_5_stroškov[[#This Row],[ZNESEK]]*0.15 -> 675.00
B15: =INDEX(Stroški_delovanja[],MATCH(Top_5_stroškov[[#This Row],[ZNESEK]],Stroški_delovanja[TOP 5 ZNESKOV],0),1) -> Davki | C15: =LARGE(Stroški_delovanja[TOP 5 ZNESKOV],4) -> 3,200.00 | D15: =Top_5_stroškov[[#This Row],[ZNESEK]]/$D$6 -> 6.4% | E15: =Top_5_stroškov[[#This Row],[ZNESEK]]*0.15 -> 480.00
B16: =INDEX(Stroški_delovanja[],MATCH(Top_5_stroškov[[#This Row],[ZNESEK]],Stroški_delovanja[TOP 5 ZNESKOV],0),1) -> Oglaševanje | C16: =LARGE(Stroški_delovanja[TOP 5 ZNESKOV],5) -> 2,500.00 | D16: =Top_5_stroškov[[#This Row],[ZNESEK]]/$D$6 -> 5.0% | E16: =Top_5_stroškov[[#This Row],[ZNESEK]]*0.15 -> 375.00
B17: Vsota | C17: =SUBTOTAL(109,Top_5_stroškov[ZNESEK]) -> 19,300.00 | D17: =SUBTOTAL(109,Top_5_stroškov[% STROŠKOV]) -> 38.9% | E17: =SUBTOTAL(109,Top_5_stroškov[15 % ZMANJŠANJE]) -> 2,895.00

Sheet Dohodek
B1: =IME_PODJETJA -> IME PODJETJA
B2: =Naslov_PRORAČUN -> MESEČNI PRORAČUN
B4: DOHODEK | C4: OCENJENO | D4: DEJANSKO | E4: TOP 5 ZNESKOV | F4: RAZLIKA
B5: Čisti prihodki od prodaje | C5: 60,000.00 | D5: 54,000.00 | E5: =Dohodek[[#This Row],[DEJANSKO]]+(10^-6)*ROW(Dohodek[[#This Row],[DEJANSKO]]) -> 54,000.00 | F5: =Dohodek[[#This Row],[DEJANSKO]]-Dohodek[[#This Row],[OCENJENO]] -> -6,000.00
B6: Obrestni prihodek | C6: 3,000.00 | D6: 3,000.00 | E6: =Dohodek[[#This Row],[DEJANSKO]]+(10^-6)*ROW(Dohodek[[#This Row],[DEJANSKO]]) -> 3,000.00 | F6: =Dohodek[[#This Row],[DEJANSKO]]-Dohodek[[#This Row],[OCENJENO]] -> 0.00
B7: Prodaja sredstev (dobiček/izguba) | C7: 300.00 | D7: 450.00 | E7: =Dohodek[[#This Row],[DEJANSKO]]+(10^-6)*ROW(Dohodek[[#This Row],[DEJANSKO]]) -> 450.00 | F7: =Dohodek[[#This Row],[DEJANSKO]]-Dohodek[[#This Row],[OCENJENO]] -> 150.00
B8: Skupaj prihodki | C8: =SUBTOTAL(109,Dohodek[OCENJENO]) -> 63,300.00 | D8: =SUBTOTAL(109,Dohodek[DEJANSKO]) -> 57,450.00 | F8: =SUBTOTAL(109,Dohodek[RAZLIKA]) -> -5,850.00

Sheet Stroški osebja
B1: =IME_PODJETJA -> IME PODJETJA
B2: =Naslov_PRORAČUN -> MESEČNI PRORAČUN
B4: STROŠKI OSEBJA | C4: OCENJENO | D4: DEJANSKO | E4: TOP 5 ZNESKOV | F4: RAZLIKA
B5: Plače | C5: 9,500.00 | D5: 9,600.00 | E5: =Stroški_osebja[[#This Row],[DEJANSKO]]+(10^-6)*ROW(Stroški_osebja[[#This Row],[DEJANSKO]]) -> 9,600.00 | F5: =Stroški_osebja[[#This Row],[OCENJENO]]-Stroški_osebja[[#This Row],[DEJANSKO]] -> -100.00
B6: Zaslužki zaposlenih | C6: 4,000.00 | D6: 0.00 | E6: =Stroški_osebja[[#This Row],[DEJANSKO]]+(10^-6)*ROW(Stroški_osebja[[#This Row],[DEJANSKO]]) -> 0.00 | F6: =Stroški_osebja[[#This Row],[OCENJENO]]-Stroški_osebja[[#This Row],[DEJANSKO]] -> 4,000.00
B7: Provizija | C7: 5,000.00 | D7: 4,500.00 | E7: =Stroški_osebja[[#This Row],[DEJANSKO]]+(10^-6)*ROW(Stroški_osebja[[#This Row],[DEJANSKO]]) -> 4,500.00 | F7: =Stroški_osebja[[#This Row],[OCENJENO]]-Stroški_osebja[[#This Row],[DEJANSKO]] -> 500.00
B8: Osebni stroški skupaj | C8: =SUBTOTAL(109,Stroški_osebja[OCENJENO]) -> 18,500.00 | D8: =SUBTOTAL(109,Stroški_osebja[DEJANSKO]) -> 14,100.00 | F8: =SUBTOTAL(109,Stroški_osebja[RAZLIKA]) -> 4,400.00

Sheet Stroški delovanja
B1: =IME_PODJETJA -> IME PODJETJA
B2: =Naslov_PRORAČUN -> MESEČNI PRORAČUN
B4: STROŠKI DELOVANJA | C4: OCENJENO | D4: DEJANSKO | E4: TOP 5 ZNESKOV | F4: RAZLIKA
B5: Oglaševanje | C5: 3,000.00 | D5: 2,500.00 | E5: =Stroški_delovanja[[#This Row],[DEJANSKO]]+(10^-6)*ROW(Stroški_delovanja[[#This Row],[DEJANSKO]]) -> 2,500.00 | F5: =Stroški_delovanja[[#This Row],[OCENJENO]]-Stroški_delovanja[[#This Row],[DEJANSKO]] -> 500.00
B6: Slaba posojila | C6: 2,000.00 | D6: 2,000.00 | E6: =Stroški_delovanja[[#This Row],[DEJANSKO]]+(10^-6)*ROW(Stroški_delovanja[[#This Row],[DEJANSKO]]) -> 2,000.00 | F6: =Stroški_delovanja[[#This Row],[OCENJENO]]-Stroški_delovanja[[#This Row],[DEJANSKO]] -> 0.00
B7: Gotovinski popusti | C7: 1,500.00 | D7: 2,175.00 | E7: =Stroški_delovanja[[#This Row],[DEJANSKO]]+(10^-6)*ROW(Stroški_delovanja[[#This Row],[DEJANSKO]]) -> 2,175.00 | F7: =Stroški_delovanja[[#This Row],[OCENJENO]]-Stroški_delovanja[[#This Row],[DEJANSKO]] -> -675.00
B8: Stroški dostave | C8: 2,000.00 | D8: 1,500.00 | E8: =Stroški_delovanja[[#This Row],[DEJANSKO]]+(10^-6)*ROW(Stroški_delovanja[[#This Row],[DEJANSKO]]) -> 1,500.00 | F8: =Stroški_delovanja[[#This Row],[OCENJENO]]-Stroški_delovanja[[#This Row],[DEJANSKO]] -> 500.00
B9: Amortizacija | C9: 1,000.00 | D9: 1,000.00 | E9: =Stroški_delovanja[[#This Row],[DEJANSKO]]+(10^-6)*ROW(Stroški_delovanja[[#This Row],[DEJANSKO]]) -> 1,000.00 | F9: =Stroški_delovanja[[#This Row],[OCENJENO]]-Stroški_delovanja[[#This Row],[DEJANSKO]] -> 0.00
B10: Pristojbine in naročnine | C10: 500.00 | D10: 525.00 | E10: =Stroški_delovanja[[#This Row],[DEJANSKO]]+(10^-6)*ROW(Stroški_delovanja[[#This Row],[DEJANSKO]]) -> 525.00 | F10: =Stroški_delovanja[[#This Row],[OCENJENO]]-Stroški_delovanja[[#This Row],[DEJANSKO]] -> -25.00
B11: Zavarovanje | C11: 1,300.00 | D11: 1,275.00 | E11: =Stroški_delovanja[[#This Row],[DEJANSKO]]+(10^-6)*ROW(Stroški_delovanja[[#This Row],[DEJANSKO]]) -> 1,275.00 | F11: =Stroški_delovanja[[#This Row],[OCENJENO]]-Stroški_delovanja[[#This Row],[DEJANSKO]] -> 25.00
B12: Obresti | C12: 2,000.00 | D12: 2,200.00 | E12: =Stroški_delovanja[[#This Row],[DEJANSKO]]+(10^-6)*ROW(Stroški_delovanja[[#This Row],[DEJANSKO]]) -> 2,200.00 | F12: =Stroški_delovanja[[#This Row],[OCENJENO]]-Stroški_delovanja[[#This Row],[DEJANSKO]] -> -200.00
B13: Pravno in revizija | C13: 1,000.00 | D13: 800.00 | E13: =Stroški_delovanja[[#This Row],[DEJANSKO]]+(10^-6)*ROW(Stroški_delovanja[[#This Row],[DEJANSKO]]) -> 800.00 | F13: =Stroški_delovanja[[#This Row],[OCENJENO]]-Stroški_delovanja[[#This Row],[DEJANSKO]] -> 200.00
B14: Vzdrževanje in popravila | C14: 4,500.00 | D14: 4,600.00 | E14: =Stroški_delovanja[[#This Row],[DEJANSKO]]+(10^-6)*ROW(Stroški_delovanja[[#This Row],[DEJANSKO]]) -> 4,600.00 | F14: =Stroški_delovanja[[#This Row],[OCENJENO]]-Stroški_delovanja[[#This Row],[DEJANSKO]] -> -100.00
B15: Pisarniški material | C15: 800.00 | D15: 750.00 | E15: =Stroški_delovanja[[#This Row],[DEJANSKO]]+(10^-6)*ROW(Stroški_delovanja[[#This Row],[DEJANSKO]]) -> 750.00 | F15: =Stroški_delovanja[[#This Row],[OCENJENO]]-Stroški_delovanja[[#This Row],[DEJANSKO]] -> 50.00
B16: Poštnina | C16: 400.00 | D16: 350.00 | E16: =Stroški_delovanja[[#This Row],[DEJANSKO]]+(10^-6)*ROW(Stroški_delovanja[[#This Row],[DEJANSKO]]) -> 350.00 | F16: =Stroški_delovanja[[#This Row],[OCENJENO]]-Stroški_delovanja[[#This Row],[DEJANSKO]] -> 50.00
B17: Najemnina ali hipoteka | C17: 4,100.00 | D17: 4,500.00 | E17: =Stroški_delovanja[[#This Row],[DEJANSKO]]+(10^-6)*ROW(Stroški_delovanja[[#This Row],[DEJANSKO]]) -> 4,500.00 | F17: =Stroški_delovanja[[#This Row],[OCENJENO]]-Stroški_delovanja[[#This Row],[DEJANSKO]] -> -400.00
B18: Stroški prodaje | C18: 350.00 | D18: 400.00 | E18: =Stroški_delovanja[[#This Row],[DEJANSKO]]+(10^-6)*ROW(Stroški_delovanja[[#This Row],[DEJANSKO]]) -> 400.00 | F18: =Stroški_delovanja[[#This Row],[OCENJENO]]-Stroški_delovanja[[#This Row],[DEJANSKO]] -> -50.00
B19: Odprema in shranjevanje | C19: 900.00 | D19: 840.00 | E19: =Stroški_delovanja[[#This Row],[DEJANSKO]]+(10^-6)*ROW(Stroški_delovanja[[#This Row],[DEJANSKO]]) -> 840.00 | F19: =Stroški_delovanja[[#This Row],[OCENJENO]]-Stroški_delovanja[[#This Row],[DEJANSKO]] -> 60.00
B20: potrebščine | C20: 5,000.00 | D20: 4,500.00 | E20: =Stroški_delovanja[[#This Row],[DEJANSKO]]+(10^-6)*ROW(Stroški_delovanja[[#This Row],[DEJANSKO]]) -> 4,500.00 | F20: =Stroški_delovanja[[#This Row],[OCENJENO]]-Stroški_delovanja[[#This Row],[DEJANSKO]] -> 500.00
B21: Davki | C21: 3,000.00 | D21: 3,200.00 | E21: =Stroški_delovanja[[#This Row],[DEJANSKO]]+(10^-6)*ROW(Stroški_delovanja[[#This Row],[DEJANSKO]]) -> 3,200.00 | F21: =Stroški_delovanja[[#This Row],[OCENJENO]]-Stroški_delovanja[[#This Row],[DEJANSKO]] -> -200.00
B22: Telefon | C22: 250.00 | D22: 280.00 | E22: =Stroški_delovanja[[#This Row],[DEJANSKO]]+(10^-6)*ROW(Stroški_delovanja[[#This Row],[DEJANSKO]]) -> 280.00 | F22: =Stroški_delovanja[[#This Row],[OCENJENO]]-Stroški_delovanja[[#This Row],[DEJANSKO]] -> -30.00
B23: Komunalni stroški | C23: 1,400.00 | D23: 1,385.00 | E23: =Stroški_delovanja[[#This Row],[DEJANSKO]]+(10^-6)*ROW(Stroški_delovanja[[#This Row],[DEJANSKO]]) -> 1,385.00 | F23: =Stroški_delovanja[[#This Row],[OCENJENO]]-Stroški_delovanja[[#This Row],[DEJANSKO]] -> 15.00
B24: Drugo | C24: 1,000.00 | D24: 750.00 | E24: =Stroški_delovanja[[#This Row],[DEJANSKO]]+(10^-6)*ROW(Stroški_delovanja[[#This Row],[DEJANSKO]]) -> 750.00 | F24: =Stroški_delovanja[[#This Row],[OCENJENO]]-Stroški_delovanja[[#This Row],[DEJANSKO]] -> 250.00
B25: Skupni operativni stroški | C25: =SUBTOTAL(109,Stroški_delovanja[OCENJENO]) -> 36,000.00 | D25: =SUBTOTAL(109,Stroški_delovanja[DEJANSKO]) -> 35,530.00 | F25: =SUBTOTAL(109,Stroški_delovanja[RAZLIKA]) -> 470.00
